lending/lending_fUSD_20260211
["ID","MTS","AMOUNT","RATE_DAILY","PERIOD"]
[405111195,1770843032362,-158.15,0.00013108,2]
[405111196,1770843032373,-563.03703882,0.00013154,2]
[405111197,1770843032382,-218.98493822,0.000133,2]
[405111198,1770843032392,-643.46666485,0.000133,2]
[405111199,1770843032401,-260.37590116,0.000133,2]
[405111200,1770843032411,-270.7236419,0.000133,2]
[405111201,1770843032420,-563.03703882,0.000133,2]
[405111202,1770843032429,-3485.03628294,0.00013302,2]
[405111203,1770843032439,-150.0,0.00013303,2]
[405111204,1770843032448,-150.0,0.00013303,2]
[405111205,1770843032457,-500.0,0.00013303,2]
[405111206,1770843032467,-500.0,0.00013303,2]
[405111207,1770843032477,-500.0,0.00013303,2]
[405111208,1770843032486,-500.0,0.00013303,2]
[405111209,1770843032496,-500.0,0.00013303,2]
[405111210,1770843032506,-150.0,0.00013303,2]
[405111211,1770843032515,-150.0,0.00013303,2]
[405111212,1770843032525,-150.0,0.00013303,2]
[405111213,1770843032534,-500.0,0.00013303,2]
[405111214,1770843032543,-150.0,0.00013303,2]
[405111215,1770843032553,-500.0,0.00013303,2]
[405111216,1770843032563,-150.0,0.00013303,2]
[405111217,1770843032573,-500.0,0.00013303,2]
[405111218,1770843032583,-900.71249902,0.00013313,2]
[405111219,1770843032592,-399.0,0.00013347,2]
[405111220,1770843032603,-150.0,0.00013358,2]
[405111221,1770843032612,-150.0,0.00013358,2]
[405111222,1770843032621,-500.0,0.00013358,2]
[405111223,1770843032631,-504.50097827,0.00013358,2]
[405111224,1770843032640,-500.0,0.00013358,2]
[405111225,1770843032649,-500.0,0.00013358,2]
[405111226,1770843032659,-500.0,0.00013358,2]
[405111227,1770843032668,-150.0,0.00013358,2]
[405111228,1770843032677,-207.29937137,0.00013358,2]
[405111229,1770843032687,-500.0,0.00013358,2]
[405111230,1770843032696,-500.0,0.00013358,2]
[405111231,1770843032706,-500.0,0.00013358,2]
[405111232,1770843032716,-200.0,0.00013375,2]
[405111233,1770843032725,-150.0,0.00013376,2]
[405111234,1770843032735,-150.0,0.00013376,2]
[405111235,1770843032744,-20791.0449003,0.00013392,2]
[405111236,1770843032754,-150.0,0.00013392,2]
[405111237,1770843032763,-150.0,0.00013393,2]
[405111238,1770843032773,-200.99227331,0.00013393,2]
[405111239,1770843032782,-150.0,0.00013393,2]
[405111240,1770843032792,-500.0,0.00013393,2]
[405111241,1770843032801,-500.0,0.00013393,2]
[405111242,1770843032810,-150.0,0.00013393,2]
[405111243,1770843032820,-152.98275489,0.00013393,2]
[405111244,1770843032830,-1647.1712764,0.000134,2]
[405111245,1770843032839,-2395.7569146,0.000134,2]
[405111246,1770843032850,-2770.0497337,0.000134,2]
[405111247,1770843032860,-2770.0497337,0.000134,2]
[405111248,1770843032870,-11658.77130141,0.000134,2]
[405111249,1770843032906,-4593.93522108,0.000134,2]
[405111250,1770843032916,-151.0,0.000134,2]
[405111251,1770843032925,-151.0,0.000134,2]
[405111252,1770843032935,-244.0690567,0.000134,2]
[405111253,1770843032945,-1000.0,0.00013402,2]
[405111254,1770843032955,-500.0,0.00013402,2]
[405111255,1770843032965,-4064.84838944,0.00013403,2]
[405111256,1770843032990,-104255.55060619,0.00013403,2]
[405111259,1770843037904,-604.94939146,0.00013313,2]
[405111260,1770843037914,-669.19372711,0.00013403,2]
[405111261,1770843037959,-1605.0,0.00013403,2]
[405111264,1770843040355,-327.84001672,0.00013403,2]
[405111265,1770843040369,-3389077.56726054,0.00013403,2]
[405111266,1770843040380,-200.0,0.00013413,2]
[405111268,1770843040392,-150.0,0.00013413,2]
[405111269,1770843040402,-500.0,0.00013413,2]
[405111270,1770843040413,-500.0,0.00013413,2]
[405111271,1770843040422,-500.0,0.00013413,2]
[405111272,1770843040432,-500.0,0.00013413,2]
[405111273,1770843040442,-150.0,0.00013413,2]
[405111275,1770843040452,-500.0,0.00013413,2]
[405111276,1770843040462,-500.0,0.00013413,2]
[405111277,1770843040471,-500.0,0.00013413,2]
[405111278,1770843040482,-150.0,0.00013431,2]
[405111279,1770843040493,-250.0,0.00013448,2]
[405111280,1770843040503,-202.45952396,0.00013448,2]
[405111281,1770843040513,-500.0,0.00013448,2]
[405111282,1770843040523,-500.0,0.00013448,2]
[405111283,1770843040533,-150.0,0.00013448,2]
[405111284,1770843040543,-269.56193534,0.00013467,2]
[405111285,1770843040553,-500.0,0.00013467,2]
[405111286,1770843040569,-500.0,0.00013467,2]
[405111287,1770843040580,-500.0,0.00013467,2]
[405111288,1770843040591,-500.0,0.00013467,2]
[405111289,1770843040602,-150.0,0.00013467,2]
[405111290,1770843040614,-500.0,0.00013467,2]
[405111291,1770843040624,-500.0,0.00013467,2]
[405111292,1770843040635,-500.0,0.00013467,2]
[405111293,1770843040645,-847.46748652,0.00013478,2]
[405111294,1770843040654,-2447.11910275,0.00013478,2]
[405111295,1770843040664,-4476.66820945,0.00013478,2]
[405111296,1770843040675,-2073.26,0.00013478,2]
[405111297,1770843040685,-10000.0,0.00013478,2]
[405111298,1770843040695,-2500.0,0.00013478,2]
[405111299,1770843040706,-2287.42850818,0.00013478,2]
[405111300,1770843040717,-255.57006195,0.00013503,2]
[405111301,1770843040728,-500.0,0.00013503,2]
[405111302,1770843040738,-150.0,0.00013503,2]
[405111303,1770843040749,-538.89,0.00013503,2]
[405111304,1770843040760,-500.0,0.00013522,2]
[405111305,1770843040770,-500.0,0.00013522,2]
[405111306,1770843040781,-500.0,0.00013522,2]
[405111307,1770843040792,-150.0,0.00013522,2]
[405111308,1770843040802,-500.0,0.00013522,2]
[405111309,1770843040812,-500.0,0.00013522,2]
[405111310,1770843040824,-500.0,0.00013522,2]
[405111311,1770843040834,-500.0,0.00013557,2]
[405111312,1770843040844,-150.0,0.00013557,2]
[405111313,1770843040854,-200.0,0.0001357,2]
[405111314,1770843040864,-200.0,0.0001357,2]
[405111315,1770843040874,-500.0,0.0001357,2]
[405111316,1770843040885,-500.0,0.0001357,2]
[405111317,1770843040896,-151.0,0.0001357,2]
[405111318,1770843040906,-500.0,0.0001357,2]
[405111319,1770843040921,-500.0,0.0001357,2]
[405111320,1770843040931,-500.0,0.0001357,2]
[405111321,1770843040941,-500.0,0.0001357,2]
[405111322,1770843040953,-561.50404512,0.0001357,2]
[405111323,1770843040964,-500.0,0.0001357,2]
[405111324,1770843040975,-500.0,0.00013577,2]
[405111325,1770843040986,-500.0,0.00013577,2]
[405111326,1770843040996,-213.01001357,0.00013577,2]
[405111327,1770843041007,-500.0,0.00013577,2]
[405111328,1770843041017,-500.0,0.00013577,2]
[405111329,1770843041028,-500.0,0.00013577,2]
[405111330,1770843041039,-1911.046,0.00013599,2]
[405111331,1770843041050,-167.429,0.00013599,2]
[405111332,1770843041061,-200.0,0.000136,4]
[405111333,1770843041073,-500.0,0.00013612,2]
[405111334,1770843041084,-150.0,0.00013612,2]
[405111335,1770843041095,-500.0,0.00013632,2]
[405111336,1770843041107,-500.0,0.00013632,2]
[405111337,1770843041118,-388.23947853,0.00013632,2]
[405111338,1770843041128,-500.0,0.00013632,2]
[405111339,1770843041140,-362.37658603,0.00013632,2]
[405111340,1770843041151,-500.0,0.00013667,2]
[405111341,1770843041161,-500.0,0.00013676,2]
[405111342,1770843041171,-4642.3711,0.00013678,2]
[405111343,1770843041181,-3064.7162,0.00013678,2]
[405111344,1770843041191,-174.02517861,0.0001368,2]
[405111345,1770843041202,-610.48123342,0.0001368,2]
[405111346,1770843041213,-275.2905308,0.00013687,2]
[405111347,1770843041224,-500.0,0.00013687,2]
[405111348,1770843041234,-500.0,0.00013687,2]
[405111349,1770843041244,-500.0,0.000137,5]
[405111350,1770843041256,-500.0,0.00013722,2]
[405111351,1770843041266,-500.0,0.00013741,2]
[405111352,1770843041281,-500.0,0.00013741,2]
[405111353,1770843041292,-271.54143877,0.00013777,2]
[405111354,1770843041303,-217.61561231,0.00013777,2]
[405111355,1770843041314,-538.89,0.00013777,2]
[405111356,1770843041327,-1000.0,0.0001378,2]
[405111357,1770843041338,-324.0,0.00013796,2]
[405111358,1770843041349,-500.0,0.00013796,2]
[405111359,1770843041363,-800.0,0.000138,5]
[405111360,1770843041373,-400.0,0.00013851,2]
[405111361,1770843041384,-1100.0,0.000139,5]
[405111362,1770843041397,-500.0,0.0001395,2]
[405111363,1770843041408,-2447.11910271,0.00013969,2]
[405111364,1770843041418,-4476.66820941,0.00013969,2]
[405111365,1770843041430,-538.89,0.00014051,2]
[405111366,1770843041441,-500.0,0.00014224,2]
[405111367,1770843041452,-250.0,0.00014281,2]
[405111368,1770843041463,-776.5478061,0.00014281,2]
[405111369,1770843041473,-195.0,0.00014281,2]
[405111370,1770843041484,-195.0,0.00014281,2]
[405111371,1770843041494,-195.0,0.00014281,2]
[405111372,1770843041506,-195.0,0.00014281,2]
[405111373,1770843041516,-195.0,0.00014281,2]
[405111374,1770843041527,-353.83408348,0.00014281,2]
[405111375,1770843041538,-538.89,0.00014325,2]
[405111376,1770843041549,-2447.11910271,0.00014461,2]
[405111377,1770843041559,-4476.66820941,0.00014461,2]
[405111378,1770843041570,-255.0,0.00014504,2]
[405111379,1770843041581,-538.92,0.00014599,2]
[405111380,1770843041591,-502.90864516,0.00014875,2]
[405111381,1770843041602,-403.12239896,0.00014875,2]
[405111382,1770843041615,-2447.11910271,0.00014952,2]
[405111383,1770843041625,-4476.66820941,0.00014952,2]
[405111384,1770843041636,-567.0,0.00015017,2]
[405111385,1770843041651,-392.0,0.00015067,2]
[405111386,1770843041662,-334.0,0.00015104,2]
[405111387,1770843041672,-280.0,0.00015204,2]
[405111388,1770843041683,-1346.65,0.00015258,2]
[405111389,1770843041693,-158.15,0.00015293,2]
[405111390,1770843041703,-2447.11910271,0.00015443,2]
[405111391,1770843041714,-4476.66820941,0.00015443,2]
[405111392,1770843041724,-166.67,0.00015502,2]
[405111393,1770843041735,-847.46748651,0.00015689,2]
[405111394,1770843041745,-1000.0,0.000157,2]
[405111395,1770843041755,-340.0,0.00015838,2]
[405111396,1770843041766,-500.0,0.00015889,2]
[405111397,1770843041776,-335.0,0.00015889,2]
[405111398,1770843041787,-200.0,0.00015926,2]
[405111399,1770843041798,-2447.11910271,0.00015935,2]
[405111400,1770843041808,-4476.66820941,0.00015935,2]
[405111401,1770843041819,-202.540985,0.00016,2]
[405111402,1770843041829,-168.0,0.00016026,2]
[405111403,1770843041843,-2100.0,0.00016082,2]
[405111404,1770843041854,-30842.17,0.00016117,2]
[405111405,1770843041866,-932.18,0.00016325,2]
[405111406,1770843041877,-166.67,0.00016355,2]
[405111407,1770843041887,-500.0,0.00016356,2]
[405111408,1770843041898,-500.0,0.00016356,2]
[405111409,1770843041909,-2447.11910271,0.00016426,2]
[405111410,1770843041920,-4476.66820941,0.00016426,2]
[405111411,1770843041931,-1270.5,0.00016513,2]
[405111412,1770843041941,-226.0,0.0001666,2]
[405111413,1770843041952,-556.0,0.00016711,2]
[405111414,1770843041963,-164.0,0.0001672,2]
[405111415,1770843041974,-841.0,0.0001672,2]
[405111416,1770843041985,-1246.0,0.0001672,2]
[405111417,1770843041996,-160.0,0.00016836,2]
[405111418,1770843042006,-3487.0,0.00016873,2]
[405111419,1770843042017,-1337.0,0.00016873,2]
[405111420,1770843042027,-1288.0,0.00016873,2]
[405111421,1770843042041,-150.0,0.00016873,2]
[405111422,1770843042051,-1273.0,0.00016873,2]
[405111423,1770843042061,-918.0,0.00016873,2]
[405111424,1770843042071,-1207.0,0.00016873,2]
[405111425,1770843042082,-2449.0,0.00016873,2]
[405111426,1770843042092,-412.0,0.00016873,2]
[405111427,1770843042103,-6590.0,0.00016873,2]
[405111428,1770843042116,-2447.11910271,0.00016917,2]
[405111429,1770843042127,-4476.66820941,0.00016917,2]
[405111430,1770843042137,-1270.5,0.00017012,2]
[405111431,1770843042148,-155.34959577,0.00017017,2]
[405111432,1770843042160,-250.0,0.00017023,2]
[405111433,1770843042170,-164.0,0.0001704,2]
[405111434,1770843042180,-411.55774058,0.00017099,2]
[405111435,1770843042191,-1346.65,0.00017166,2]
[405111436,1770843042202,-166.67,0.00017208,2]
[405111437,1770843042212,-1000.0,0.0001726,2]
[405111438,1770843042223,-2829.0,0.0001736,2]
[405111439,1770843042234,-2447.11910271,0.00017409,2]
[405111440,1770843042245,-4476.66820941,0.00017409,2]
[405111441,1770843042258,-2100.0,0.00017452,7]
[405111442,1770843042269,-158.15,0.00017478,2]
[405111443,1770843042280,-1270.5,0.00017511,2]
[405111444,1770843042292,-1000.0,0.00017534,2]
[405111445,1770843042303,-1000.0,0.00017547,2]
[405111446,1770843042314,-1000.0,0.00017548,2]
[405111447,1770843042330,-1000.0,0.00017549,2]
[405111448,1770843042341,-492.8047481,0.00017551,2]
[405111449,1770843042351,-1000.0,0.00017557,2]
[405111450,1770843042363,-1000.0,0.00017557,2]
[405111451,1770843042374,-1000.0,0.00017565,2]
[405111452,1770843042385,-1000.0,0.00017568,2]
[405111453,1770843042399,-1000.0,0.00017568,2]
[405111454,1770843042409,-1000.0,0.00017569,2]
[405111455,1770843042430,-1000.0,0.00017592,2]
[405111456,1770843042444,-1000.0,0.00017599,2]
[405111457,1770843042455,-1000.0,0.00017614,2]
[405111458,1770843042466,-1000.0,0.00017639,2]
[405111459,1770843042478,-3369.58709861,0.0001764,2]
[405111460,1770843042489,-1000.0,0.00017644,2]
[405111461,1770843042500,-1000.0,0.00017669,2]
[405111462,1770843042511,-160.0,0.0001768,2]
[405111463,1770843042522,-1000.0,0.00017697,2]
[405111464,1770843042533,-1400.0,0.000177,6]
[405111465,1770843042545,-150.0,0.0001771,2]
[405111466,1770843042555,-150.0,0.00017713,2]
[405111467,1770843042566,-1000.0,0.00017718,2]
[405111468,1770843042576,-1000.0,0.00017723,2]
[405111469,1770843042587,-1000.0,0.00017723,2]
[405111470,1770843042598,-500.0,0.00017726,7]
[405111471,1770843042608,-500.0,0.00017726,7]
[405111472,1770843042619,-1000.0,0.00017729,2]
[405111473,1770843042631,-150.0,0.00017734,2]
[405111474,1770843042641,-1000.0,0.00017738,2]
[405111475,1770843042652,-1000.0,0.00017738,2]
[405111476,1770843042663,-1000.0,0.00017743,2]
[405111477,1770843042673,-1000.0,0.00017744,2]
[405111479,1770843042684,-1000.0,0.00017746,2]
[405111482,1770843042695,-1000.0,0.00017763,2]
[405111484,1770843042706,-401.59497463,0.00017773,2]
[405111486,1770843042717,-150.0,0.00017778,2]
[405111488,1770843042727,-150.0,0.00017783,2]
[405111489,1770843042738,-150.0,0.00017788,2]
[405111490,1770843042749,-200.0,0.000178,6]
[405111491,1770843042760,-1000.0,0.00017808,2]
[405111492,1770843042773,-1000.0,0.00017808,2]
[405111493,1770843042788,-2000.0,0.0001782,2]
[405111494,1770843042799,-2000.0,0.0001782,2]
[405111495,1770843042809,-287.30101856,0.00017834,2]
[405111496,1770843042819,-1000.0,0.00017839,2]
[405111497,1770843042830,-1000.0,0.00017846,2]
[405111498,1770843042841,-200.0,0.00017856,2]
[405111499,1770843042851,-847.46748651,0.000179,2]
[405111500,1770843042864,-2447.11910271,0.000179,2]
[405111501,1770843042875,-200.0,0.000179,6]
[405111502,1770843042885,-4476.66820941,0.000179,2]
[405111503,1770843042896,-987.0,0.000179,2]
[405111504,1770843042906,-861.0,0.000179,2]
[405111505,1770843042917,-6201.0,0.000179,2]
[405111506,1770843042928,-150.0,0.00017901,2]
[405111507,1770843042938,-2829.0,0.0001794,2]
[405111508,1770843042949,-150.0,0.0001795,2]
[405111509,1770843042960,-700.0,0.0001797,2]
[405111510,1770843042970,-706.22551575,0.0001797,2]
[405111511,1770843042980,-4350.4123304,0.0001799,2]
[405111512,1770843042991,-152.98275489,0.0001799,2]
[405111513,1770843043002,-80206.7549029,0.00017999,2]
[405111514,1770843043013,-16930.2533326,0.00017999,2]
[405111515,1770843043023,-300.0,0.00017999,2]
[405111516,1770843043033,-300.0,0.00017999,2]
[405111517,1770843043044,-300.0,0.00017999,2]
[405111518,1770843043055,-300.0,0.00017999,2]
[405111519,1770843043066,-300.0,0.00017999,2]
[405111520,1770843043077,-666.0,0.00017999,2]
[405111521,1770843043088,-1054699.19328157,0.00018,2]
[405111522,1770843043131,-372.80333372,0.00018,2]
[405111523,1770843043149,-3561.99998,0.00018,2]
[405111524,1770843043247,-149706.63446222,0.00018,2]
[405111525,1770843043296,-315.041611,0.00018,2]
[405111526,1770843043311,-335.38,0.00018,2]
[405111527,1770843043332,-1308.7325,0.00018,2]
[405111528,1770843043345,-2253.86414338,0.00018,2]
[405111529,1770843043358,-503.77169534,0.00018,2]
[405111530,1770843043372,-673.36,0.00018,2]
[405111532,1770843045015,-6510.0,0.00018,2]
[405111533,1770843045028,-12007.41093498,0.00018,2]
[405111534,1770843045052,-1142.02,0.00018,2]
[405111535,1770843045064,-326.36,0.00018,2]
[405111536,1770843045209,-673.78,0.00018,2]
[405111537,1770843045878,-1599.29693336,0.00018,2]
[405111538,1770843045891,-435.56147818,0.00018,2]
[405111539,1770843045936,-356.5,0.00018,2]
[405111545,1770843049667,173.12,0.00030411,120]
[405111551,1770843167725,200.0,0.000126,4]
[405111552,1770843170338,400.0,0.000127,4]
[405111553,1770843171939,600.0,0.000128,4]
[405111554,1770843174376,800.0,0.000129,4]
[405111555,1770843307482,185.0,0.00031019,120]
[405111556,1770843308880,185.0,0.0003257,120]
[405111557,1770843310215,185.0,0.00034199,120]
[405111562,1770843682538,150.0,1e-05,2]
[405111564,1770843703107,150.0,1e-05,2]
[405111565,1770843705679,150.0,0.00012297,2]
[405111566,1770843707006,1202.11,0.00012297,2]
[405111591,1770844064253,160.0,0.00012986,4]
[405111592,1770844064340,160.0,0.00012986,4]
[405111593,1770844064524,160.0,0.00012986,4]
[405111594,1770844064858,288.65,0.00012986,4]
[405111595,1770844065252,160.0,0.00012986,4]
[405111596,1770844065552,289.85207436,0.00012986,4]
[405111597,1770844065577,11.33792564,0.00012986,4]
[405111598,1770844065863,407.48,0.0001297,4]
[405111599,1770844127164,157.86,9.669e-05,2]
[405111605,1770844232124,-8027.97513753,0.00012846,2]
[405111616,1770844238152,-6000.89731925,0.00012846,2]
[405111617,1770844238166,-485.4300017,0.00012846,2]
[405111618,1770844238209,-1594.34128727,0.00012846,2]
[405111619,1770844238223,-310.00253639,0.00012846,2]
[405111620,1770844238387,-28699.38682517,0.00012846,2]
[405111621,1770844238398,-600.47499936,0.00012847,2]
[405111622,1770844238410,-152.9827549,0.0001289,2]
[405111623,1770844238421,-151.0,0.00012897,2]
[405111624,1770844238432,-151.0,0.00012897,2]
[405111625,1770844238443,-151.0,0.00012897,2]
[405111626,1770844238453,-500.0,0.00012899,2]
[405111627,1770844238464,-300.0,0.00012899,2]
[405111628,1770844238475,-150.0,0.00012899,2]
[405111629,1770844238486,-184.61212658,0.00012899,2]
[405111630,1770844238497,-718.43799277,0.00012899,2]
[405111631,1770844238507,-718.43799277,0.00012899,2]
[405111632,1770844238517,-718.43799277,0.00012899,2]
[405111633,1770844238527,-718.43799277,0.00012899,2]
[405111634,1770844238539,-718.43799277,0.00012899,2]
[405111635,1770844238550,-718.43799277,0.00012899,2]
[405111636,1770844238560,-718.43799277,0.00012899,2]
[405111637,1770844238570,-718.43799277,0.00012899,2]
[405111638,1770844238581,-718.43799277,0.00012899,2]
[405111639,1770844238591,-718.43799277,0.00012899,2]
[405111640,1770844238602,-718.43799277,0.00012899,2]
[405111641,1770844238612,-718.43799277,0.00012899,2]
[405111642,1770844238622,-718.43799277,0.00012899,2]
[405111643,1770844238633,-718.43799277,0.00012899,2]
[405111644,1770844238650,-718.43799277,0.00012899,2]
[405111645,1770844238663,-718.43799277,0.00012899,2]
[405111646,1770844238673,-718.43799277,0.00012899,2]
[405111647,1770844238684,-718.43799277,0.00012899,2]
[405111648,1770844238698,-718.43799277,0.00012899,2]
[405111649,1770844238709,-718.43799277,0.00012899,2]
[405111650,1770844238719,-542.78343859,0.00012899,2]
[405111651,1770844239151,-175.65455418,0.00012899,2]
[405111652,1770844239163,-262.05487917,0.00012899,2]
[405111653,1770844239176,-456.3831136,0.00012899,2]
[405111654,1770844239186,-718.43799277,0.00012899,2]
[405111655,1770844239197,-718.43799277,0.00012899,2]
[405111656,1770844239207,-330.91498658,0.00012899,2]
[405111664,1770844240240,-387.52300619,0.00012899,2]
[405111665,1770844240250,-718.43799277,0.00012899,2]
[405111666,1770844240260,-718.43799277,0.00012899,2]
[405111667,1770844240270,-718.43799277,0.00012899,2]
[405111668,1770844240280,-718.43799277,0.00012899,2]
[405111669,1770844240289,-329.33753429,0.00012899,2]
[405111670,1770844240301,-389.10045848,0.00012899,2]
[405111671,1770844240312,-718.43799277,0.00012899,2]
[405111672,1770844240323,-718.43799277,0.00012899,2]
[405111673,1770844240333,-718.43799277,0.00012899,2]
[405111674,1770844240344,-718.43799277,0.00012899,2]
[405111675,1770844240355,-718.43799277,0.00012899,2]
[405111676,1770844240366,-718.43799277,0.00012899,2]
[405111677,1770844240377,-718.43799277,0.00012899,2]
[405111678,1770844240387,-718.43799277,0.00012899,2]
[405111679,1770844240398,-718.43799277,0.00012899,2]
[405111680,1770844240409,-718.43799277,0.00012899,2]
[405111681,1770844240420,-718.43799277,0.00012899,2]
[405111682,1770844240429,-718.43799277,0.00012899,2]
[405111683,1770844240440,-718.43799277,0.00012899,2]
[405111684,1770844240449,-718.43799277,0.00012899,2]
[405111685,1770844240459,-718.43799277,0.00012899,2]
[405111686,1770844240469,-718.43799277,0.00012899,2]
[405111687,1770844240479,-718.43799277,0.00012899,2]
[405111688,1770844240490,-718.43799277,0.00012899,2]
[405111689,1770844240499,-718.43799277,0.00012899,2]
[405111690,1770844240510,-718.43799277,0.00012899,2]
[405111691,1770844240520,-718.43799277,0.00012899,2]
[405111692,1770844240530,-718.43799277,0.00012899,2]
[405111693,1770844240540,-718.43799277,0.00012899,2]
[405111694,1770844240551,-718.43799277,0.00012899,2]
[405111695,1770844240562,-718.43799277,0.00012899,2]
[405111696,1770844240572,-718.43799277,0.00012899,2]
[405111697,1770844240581,-718.43799277,0.00012899,2]
[405111698,1770844240592,-718.43799277,0.00012899,2]
[405111699,1770844240602,-718.43799277,0.00012899,2]
[405111700,1770844240611,-707.21239913,0.00012899,2]
[405111701,1770844240623,-707.21239913,0.00012899,2]
[405111703,1770844240633,-707.21239913,0.00012899,2]
[405111704,1770844240643,-707.21239913,0.00012899,2]
[405111705,1770844240653,-707.21239913,0.00012899,2]
[405111706,1770844240668,-707.21239913,0.00012899,2]
[405111707,1770844240678,-707.21239913,0.00012899,2]
[405111708,1770844240691,-707.21239913,0.00012899,2]
[405111709,1770844240700,-707.21239913,0.00012899,2]
[405111710,1770844240710,-707.21239913,0.00012899,2]
[405111711,1770844240720,-707.21239913,0.00012899,2]
[405111712,1770844240730,-707.21239913,0.00012899,2]
[405111713,1770844240740,-707.21239913,0.00012899,2]
[405111714,1770844240751,-707.21239913,0.00012899,2]
[405111715,1770844240763,-707.21239913,0.00012899,2]
[405111716,1770844240772,-707.21239913,0.00012899,2]
[405111717,1770844240782,-707.21239913,0.00012899,2]
[405111718,1770844240792,-707.21239913,0.00012899,2]
[405111719,1770844240802,-707.21239913,0.00012899,2]
[405111720,1770844240811,-707.21239913,0.00012899,2]
[405111721,1770844240821,-707.21239913,0.00012899,2]
[405111722,1770844240832,-707.21239913,0.00012899,2]
[405111723,1770844240841,-707.21239913,0.00012899,2]
[405111724,1770844240851,-707.21239913,0.00012899,2]
[405111725,1770844240862,-707.21239913,0.00012899,2]
[405111726,1770844240871,-707.21239913,0.00012899,2]
[405111727,1770844240881,-707.21239913,0.00012899,2]
[405111728,1770844240891,-707.21239913,0.00012899,2]
[405111729,1770844240900,-707.21239913,0.00012899,2]
[405111730,1770844240914,-707.21239913,0.00012899,2]
[405111731,1770844240924,-707.21239913,0.00012899,2]
[405111732,1770844240934,-707.21239913,0.00012899,2]
[405111733,1770844240945,-500.0,0.00012899,2]
[405111734,1770844240955,-287.01399049,0.00012899,2]
[405111735,1770844240965,-500.0,0.00012899,2]
[405111736,1770844240975,-500.0,0.00012899,2]
[405111737,1770844240985,-500.0,0.00012899,2]
[405111738,1770844240995,-559.7961839,0.00012899,2]
[405111739,1770844241005,-183.5350296,0.00012899,2]
[405111740,1770844241015,-233.60281465,0.000129,2]
[405111741,1770844241025,-748.03202233,0.000129,2]
[405111742,1770844241035,-296.30492564,0.000129,2]
[405111743,1770844241044,-283.76450344,0.000129,2]
[405111744,1770844241054,-109697.02772082,0.000129,2]
[405111745,1770844241131,-591.07158026,0.000129,2]
[405111746,1770844241147,-1559.04062305,0.000129,2]
[405111747,1770844241168,-3388152.86007587,0.000129,2]
[405111748,1770844241178,-174.22051898,0.00012947,2]
[405111749,1770844241188,-943.16,0.00012947,2]
[405111750,1770844241199,-500.0,0.00012947,2]
[405111751,1770844241208,-337.66241168,0.00012947,2]
[405111752,1770844241218,-2500.0,0.00012983,2]
[405111753,1770844241228,-174.22051898,0.00012987,2]
[405111754,1770844241238,-4476.66820945,0.00012999,2]
[405111755,1770844241248,-847.46748652,0.00012999,2]
[405111756,1770844241259,-1257.06651769,0.00013,2]
[405111757,1770844241270,-1810.59977654,0.00013,2]
[405111758,1770844241280,-12056.9658337,0.00013,2]
[405111759,1770844241290,-2087.36640596,0.00013,2]
[405111760,1770844241300,-2087.36640596,0.00013,2]
[405111761,1770844241310,-150.0,0.00013055,2]
[405111762,1770844241320,-500.0,0.00013099,2]
[405111763,1770844241330,-500.0,0.00013099,2]
[405111764,1770844241340,-232.88924106,0.00013099,2]
[405111765,1770844241350,-500.0,0.000131,2]
[405111766,1770844241360,-200.0,0.00013119,2]
[405111767,1770844241370,-500.0,0.00013119,2]
[405111768,1770844241381,-500.0,0.00013119,2]
[405111769,1770844241391,-150.0,0.00013119,2]